bitfinex/quotes_SOLUSD_20250517
["timestamp","ask_amount","ask_price","bid_price","bid_amount"]
[1747525194147,6.02918123,165.86,165.8,19.18]
[1747525196146,6.02918123,165.86,165.8,25.2113534]
[1747525196346,6.02918123,165.86,165.8,6.0313534]
[1747525196652,6.02918123,165.86,165.79,33.16101825]
[1747525199728,6.02881774,165.87,165.79,33.16101825]
[1747525206047,10.20685292,165.87,165.79,33.16101825]
[1747525206255,10.20685292,165.86,165.79,33.16101825]
[1747525206437,10.20685292,165.86,165.79,13.98101825]
[1747525206949,10.20685292,165.87,165.79,13.98101825]
[1747525207335,10.20685292,165.88,165.79,13.98101825]
[1747525207545,40.27831815,165.89,165.79,13.98101825]
[1747525207863,10.20685292,165.88,165.79,13.98101825]
[1747525208958,6.02881774,165.87,165.79,13.98101825]
[1747525209134,16.23567066,165.87,165.79,13.98101825]
[1747525210544,6.02881774,165.87,165.79,13.98101825]
[1747525212338,6.0284543,165.88,165.79,13.98101825]
[1747525213549,16.23530722,165.88,165.79,13.98101825]
[1747525215140,10.20685292,165.87,165.79,13.98101825]
[1747525215441,10.20685292,165.86,165.79,13.98101825]
[1747525216766,6.02954476,165.85,165.79,13.98101825]
[1747525217952,6.02954476,165.85,165.79,7.57191825]
[1747525219066,6.02930615,165.86,165.79,7.57191825]
[1747525220766,6.02893256,165.87,165.79,7.57191825]
[1747525221967,6.0284543,165.88,165.79,7.57191825]
[1747525222769,16.23530722,165.88,165.79,7.57191825]
[1747525224366,6.0284543,165.88,165.79,7.57191825]
[1747525227177,16.23530722,165.88,165.79,7.57191825]
[1747525230692,16.23530722,165.88,165.79,11.8353172]
[1747525233385,6.55067487,165.88,165.79,11.8353172]
[1747525234378,6.02881774,165.87,165.8,4.26339895]
[1747525235564,6.02881774,165.87,165.81,6.03099933]
[1747525236582,12.57924923,165.88,165.81,6.03099933]
[1747525241791,32.02898558,165.87,165.81,6.03099933]
[1747525242497,6.55067487,165.86,165.8,4.26339895]
[1747525242674,6.55067487,165.85,165.8,4.26339895]
[1747525242872,6.55067487,165.85,165.79,26.73171312]
[1747525243999,6.02990834,165.84,165.79,26.73171312]
[1747525245601,32.55067487,165.87,165.79,26.73171312]
[1747525245801,26.0,165.86,165.79,26.73171312]
[1747525246179,26.0,165.86,165.79,30.99511207]
[1747525247798,32.0291983,165.86,165.79,30.99511207]
[1747525250404,26.0,165.86,165.79,30.99511207]
[1747525258824,26.0,165.86,165.81,6.03099933]
[1747525260744,153.26826257,165.92,165.81,6.03099933]
[1747525260912,26.0,165.87,165.81,6.03099933]
[1747525261309,26.0,165.89,165.81,21.10849767]
[1747525261625,138.2,165.92,165.82,19.85544169]
[1747525261809,4.29456988,165.93,165.84,18.64964886]
[1747525262015,4.29456988,165.93,165.85,26.82028266]
[1747525262406,4.29456988,165.93,165.86,18.64964886]
[1747525262609,4.29456988,165.93,165.88,18.64964886]
[1747525262924,146.78913976,165.98,165.9,18.64964886]
[1747525263129,25.69067487,166.01,165.91,19.14]
[1747525263316,51.69067487,166.01,165.91,19.14]
[1747525264020,6.02422571,166.0,165.91,19.14]
[1747525264223,6.02422571,166.0,165.92,6.02700096]
[1747525266030,51.16378593,166.01,165.92,6.02700096]
[1747525266225,51.16378593,166.01,165.92,12.15110096]
[1747525267300,45.14,166.01,165.94,6.02627455]
[1747525267508,26.0,166.01,165.95,18.64964886]
[1747525268934,26.0,166.01,165.96,6.02554832]
[1747525270039,138.2,166.04,165.97,19.12]
[1747525270341,154.44182811,166.04,165.97,19.12]
[1747525270538,10.21915268,166.03,165.97,19.12]
[1747525271220,154.44182811,166.04,165.97,19.12]
[1747525273017,154.44182811,166.04,165.97,25.14511558]
[1747525273644,26.0,166.01,165.97,19.12]
[1747525274143,32.02383111,166.01,165.97,19.12]
[1747525275536,32.02383111,166.01,165.95,19.12]
[1747525277317,32.02383111,166.01,165.95,25.14580986]
[1747525277515,6.02349402,166.02,165.95,25.14580986]
[1747525291943,10.21915268,165.99,165.93,38.2]
[1747525292459,10.21915268,165.99,165.93,19.1]
[1747525293360,6.54294635,165.96,165.91,19.1]
[1747525293566,6.54294635,165.94,165.88,19.1]
[1747525293736,6.54294635,165.93,165.87,19.1]
[1747525293946,6.54294635,165.92,165.86,20.6381]
[1747525294261,6.54294635,165.93,165.86,26.66724073]
[1747525295034,6.54294635,165.94,165.86,26.66724073]
[1747525295237,16.25391161,165.94,165.86,26.66724073]
[1747525295847,10.22763706,165.93,165.86,25.12914073]
[1747525296664,10.22763706,165.92,165.86,19.1]
[1747525296839,10.22763706,165.93,165.86,25.12912568]
[1747525297035,10.22763706,165.92,165.86,19.1]
[1747525297369,6.02736423,165.91,165.86,19.1]
[1747525298070,16.25500129,165.91,165.85,19.1]
[1747525298300,10.22763706,165.9,165.85,19.1]
[1747525299469,16.25500129,165.91,165.85,25.12949896]
[1747525299665,6.02736423,165.91,165.85,25.12949896]
[1747525299871,42.25473896,165.92,165.85,25.12949896]
[1747525302958,32.0271019,165.92,165.85,25.12949896]
[1747525304974,26.0,165.92,165.85,25.12949896]
[1747525305558,32.02702643,165.92,165.85,25.12949896]
[1747525306173,42.25466349,165.92,165.85,25.12949896]
[1747525307182,32.02702643,165.92,165.85,25.12949896]
[1747525309279,32.02702643,165.92,165.83,25.1301475]
[1747525309590,10.22763706,165.9,165.82,26.66861329]
[1747525309885,10.22763706,165.9,165.82,7.56861329]
[1747525310188,10.22763706,165.9,165.82,26.66861329]
[1747525310584,16.25572796,165.89,165.82,26.66861329]
[1747525310779,10.22763706,165.88,165.82,7.56861329]
[1747525311489,42.25572796,165.89,165.82,7.56861329]
[1747525311984,26.0,165.91,165.82,7.56861329]
[1747525312562,26.0,165.91,165.83,18.64964886]
[1747525312961,26.0,165.91,165.84,6.02990834]
[1747525313657,32.02737079,165.91,165.84,6.02990834]
[1747525316492,26.0,165.91,165.84,21.1046792]
[1747525316996,26.0,165.91,165.85,18.64964886]
[1747525317170,26.0,165.93,165.85,18.64964886]
[1747525317990,138.2,165.94,165.85,18.64964886]
[1747525318492,144.22637459,165.94,165.85,18.64964886]
[1747525318793,144.22637459,165.94,165.86,6.02918123]
[1747525318976,144.22637459,165.94,165.87,19.1]
[1747525320071,10.22763706,165.92,165.87,19.1]
[1747525320272,36.22763706,165.92,165.87,19.1]
[1747525320472,36.22763706,165.92,165.85,6.02941968]
[1747525321093,6.02736423,165.91,165.85,6.02941968]
[1747525322292,16.25500129,165.91,165.84,19.1]
[1747525322495,16.25500129,165.91,165.83,25.13027196]
[1747525322800,6.02736423,165.91,165.83,25.13027196]
[1747525322976,16.25500129,165.91,165.83,25.13027196]
[1747525323394,6.02736423,165.91,165.83,25.13027196]
[1747525323596,164.2,165.94,165.84,18.64964886]
[1747525323804,11.74763706,165.95,165.84,18.64964886]
[1747525323805,1.52,165.95,165.84,19.85522271]
[1747525323969,6.02554832,165.96,165.86,18.64964886]
[1747525324285,32.02523452,165.97,165.87,1.5249]
[1747525325271,32.02523452,165.97,165.89,18.64964886]
[1747525325478,32.02523452,165.97,165.9,19.1]
[1747525326715,32.02523452,165.97,165.91,6.02736423]
[1747525339118,26.0,165.97,165.91,6.02736423]
[1747525339296,138.2,165.99,165.92,18.64964886]
[1747525339492,138.2,165.99,165.93,1.6289]
[1747525340498,138.2,165.99,165.94,6.02627455]
[1747525340687,6.02348196,166.02,165.94,6.02627455]
[1747525341815,10.22763706,166.01,165.94,6.02627455]
[1747525342214,36.22763706,165.99,165.93,4.26339895]
[1747525342510,10.22763706,165.98,165.93,4.26339895]
[1747525343895,16.25255427,165.98,165.93,4.26339895]
[1747525344095,6.02491721,165.98,165.92,25.10677812]
[1747525344490,42.25221353,165.99,165.92,25.10677812]
[1747525348837,26.0,165.99,165.92,25.10677812]
[1747525352216,32.02447861,165.99,165.92,25.10677812]
[1747525365134,10.22763706,166.01,165.92,40.17428053]
[1747525365319,26.0,166.01,165.93,18.64964886]
[1747525365539,6.0234767,166.02,165.93,18.64964886]
[1747525366845,6.0234767,166.02,165.94,6.02627455]
[1747525368439,16.25111376,166.02,165.94,6.02627455]
[1747525370452,16.25111376,166.02,165.94,10.2896735]
[1747525371620,10.22763706,166.01,165.94,10.2896735]
[1747525371825,10.22763706,166.0,165.94,10.2896735]
[1747525372146,10.22763706,166.0,165.94,4.26339895]
[1747525372354,36.22763706,166.0,165.94,4.26339895]
[1747525373940,6.0244593,165.99,165.94,6.02623381]
[1747525374742,32.0241648,166.0,165.94,6.02623381]
[1747525376955,26.0,166.0,165.94,6.02623381]
[1747525378559,32.02413984,166.0,165.94,6.02623381]
[1747525380545,26.0,166.0,165.94,6.02623381]
[1747525381748,32.02361083,166.02,165.94,6.02623381]
[1747525382568,32.02361083,166.02,165.96,6.02554832]
[1747525382740,42.25124789,166.02,165.96,6.02554832]
[1747525383038,42.25124789,166.02,165.95,10.28916637]
[1747525383234,10.22763706,166.01,165.95,10.28916637]
[1747525384466,6.02409638,166.0,165.95,10.28916637]
[1747525385343,6.02409638,166.0,165.95,6.02576742]
[1747525385568,16.2514539,166.01,165.94,6.02627455]
[1747525385865,6.02381684,166.01,165.94,6.02627455]
[1747525390840,26.0,166.02,165.94,21.09196094]
[1747525391150,26.0,166.02,165.94,22.67416094]
[1747525391339,26.0,166.02,165.95,4.26339895]
[1747525391538,32.02342559,166.02,165.95,4.26339895]
[1747525392866,32.02342559,166.02,165.96,6.02554832]
[1747525399580,32.02342559,166.02,165.96,10.28894727]
[1747525401077,38.56261169,166.02,165.96,10.28894727]
[1747525401980,32.02342559,166.02,165.96,10.28894727]
[1747525402578,32.02342559,166.02,165.95,6.02591141]
[1747525403279,32.02342559,166.02,165.96,19.04]
[1747525404447,32.02342559,166.02,165.96,25.0653737]
[1747525404989,26.0,166.02,165.96,25.0653737]
[1747525405587,26.0,166.02,165.96,29.32877265]
[1747525410290,32.02346157,166.02,165.96,29.32877265]
[1747525412091,32.02346157,166.02,165.96,25.0653737]
[1747525414010,12.60203347,166.04,165.96,25.0653737]
[1747525414289,37.04533347,166.04,165.96,46.18014451]
[1747525414494,43.06800357,166.04,165.96,46.18014451]
[1747525414883,43.06800357,166.04,165.97,4.26339895]
[1747525415486,43.06800357,166.04,165.98,6.02482226]
[1747525418493,11.04533347,166.04,165.98,21.08687792]
[1747525420484,11.04533347,166.04,165.98,25.35027687]
[1747525421489,17.06800321,166.04,165.98,10.28822121]
[1747525421696,17.06800321,166.04,165.98,4.26339895]
[1747525421859,23.60718931,166.04,165.98,4.26339895]
[1747525423483,23.60718931,166.04,165.97,6.02517141]
[1747525425094,23.60718931,166.04,165.97,25.04517141]
[1747525427096,6.5391861,166.02,165.95,23.28339895]
[1747525427698,6.5391861,166.01,165.95,4.26339895]
[1747525428004,6.5391861,165.98,165.95,4.26339895]
[1747525428175,6.5391861,165.97,165.95,4.26339895]
[1747525428373,6.02554832,165.96,165.95,4.26339895]
[1747525428895,12.56473442,165.96,165.95,4.26339895]
[1747525429086,14.18113442,165.96,165.95,4.26339895]
[1747525429505,14.18113442,165.96,165.87,38.63106057]
[1747525429800,6.5391861,165.93,165.87,38.63106057]
[1747525430110,6.5391861,165.93,165.87,32.60230628]
[1747525430404,6.5391861,165.91,165.87,13.58230628]
[1747525430573,6.02772754,165.9,165.87,13.58230628]
[1747525430974,12.56667891,165.91,165.87,13.58230628]
[1747525431174,12.56667891,165.91,165.87,4.26339895]
[1747525431500,16.25900809,165.91,165.87,4.26339895]
[1747525432089,42.25900809,165.91,165.87,4.26339895]
[1747525432285,10.23151528,165.9,165.87,4.26339895]
[1747525432490,10.23151528,165.9,165.83,29.53739895]
[1747525432684,16.2135151,165.9,165.84,6.02972467]
[1747525432989,16.2594513,165.9,165.84,6.02972467]
[1747525434704,36.23151528,165.91,165.84,6.02972467]
[1747525434889,26.0,165.91,165.84,6.02972467]
[1747525435901,6.02636573,165.94,165.84,21.10449553]
[1747525436103,10.23151528,165.93,165.84,21.10449553]
[1747525436308,16.25788101,165.94,165.84,21.10449553]
[1747525436612,42.25788101,165.94,165.84,21.10449553]
[1747525436907,16.25820753,165.93,165.84,21.10449553]
[1747525437603,36.23151528,165.94,165.85,18.64964886]
[1747525437810,26.0,165.94,165.85,18.64964886]
[1747525439001,42.25782179,165.94,165.86,6.02918123]
[1747525439811,36.23151528,165.94,165.86,6.02918123]
[1747525439986,26.0,165.94,165.86,21.10213432]
[1747525445019,36.23151528,165.94,165.86,21.10213432]
[1747525445887,26.0,165.94,165.86,21.10213432]
[1747525453148,10.23151528,165.92,165.86,6.02918123]
[1747525453432,10.23151528,165.92,165.86,25.04918123]
[1747525454501,16.25836538,165.93,165.86,25.04918123]
[1747525455525,16.25875694,165.92,165.86,25.04918123]
[1747525455728,10.23151528,165.91,165.84,25.04963146]
[1747525456235,10.23151528,165.9,165.83,6.03017123]
[1747525456536,10.23151528,165.89,165.83,6.03017123]
[1747525457115,10.23151528,165.9,165.83,6.03017123]
[1747525457413,6.0280909,165.89,165.82,6.03063562]
[1747525460506,6.0280909,165.89,165.82,25.03063562]
[1747525464139,6.0280909,165.89,165.82,6.03063562]
[1747525464310,6.0280909,165.89,165.82,25.03063562]
[1747525466909,6.0280909,165.89,165.82,6.03063562]
[1747525467119,36.23151528,165.87,165.8,6.03136308]
[1747525467342,32.55136269,165.87,165.8,6.03136308]
[1747525468634,6.02918123,165.86,165.8,6.03136308]
[1747525470121,16.26638466,165.86,165.8,6.03136308]
[1747525471717,42.26616309,165.87,165.8,6.03136308]
[1747525472235,32.02895966,165.87,165.8,6.03136308]
[1747525472740,42.26616309,165.87,165.79,6.03172688]
[1747525483942,26.0,165.87,165.79,21.11104408]
[1747525486538,32.02881779,165.87,165.79,21.11104408]
[1747525498343,32.02881779,165.87,165.79,40.11104408]
[1747525500277,26.0,165.87,165.79,41.31711156]
[1747525500762,26.0,165.87,165.8,4.26339895]
[1747525502070,26.0,165.87,165.81,6.03099933]
[1747525503169,32.02883726,165.87,165.81,6.03099933]
[1747525503683,38.57999952,165.87,165.8,10.2946825]
[1747525504688,32.02883726,165.87,165.8,10.2946825]
[1747525504961,26.0,165.87,165.8,10.2946825]
[1747525505466,26.0,165.87,165.81,4.26339895]
[1747525506244,26.0,165.87,165.82,6.03063562]
[1747525508267,26.0,165.87,165.81,6.03099933]
[1747525511238,26.0,165.87,165.81,10.29439828]
[1747525514675,26.0,165.87,165.81,6.03099933]
[1747525517673,26.0,165.87,165.81,10.29439828]
[1747525520878,26.0,165.87,165.81,25.37189662]
[1747525521083,1.5086,165.94,165.83,1.6406]
[1747525521266,144.22598704,165.95,165.85,6.2497]
[1747525521461,144.22598704,165.95,165.86,37.62964886]
[1747525521462,26.0,165.94,165.86,37.62964886]
[1747525521770,138.2,165.95,165.86,37.62964886]
[1747525522466,150.77707528,165.95,165.86,18.98]
[1747525522667,26.0,165.92,165.86,18.98]
[1747525522870,6.02736423,165.91,165.86,18.98]
[1747525523196,12.57852649,165.91,165.86,18.98]
[1747525523509,6.55116226,165.9,165.86,18.98]
[1747525524157,12.57852649,165.91,165.86,25.00915409]
[1747525524565,38.5782782,165.92,165.86,25.00915409]
[1747525524991,6.55116226,165.91,165.86,18.98]
[1747525525280,6.55116226,165.9,165.86,18.98]
[1747525526961,6.0280909,165.89,165.86,18.98]
[1747525527891,12.57900012,165.9,165.86,18.98]
[1747525534487,1.5768,165.99,165.87,45.32622836]
[1747525534686,138.2,166.0,165.87,45.32622836]
[1747525535207,138.2,166.0,165.95,18.64964886]
[1747525535375,37.04533347,166.04,165.96,18.96]
[1747525535798,11.04533347,166.04,165.96,18.96]
[1747525536005,37.04533347,166.04,165.96,18.96]
[1747525536391,37.04533347,166.04,165.97,21.08814845]
[1747525536603,11.04533347,166.04,165.98,18.64964886]
[1747525536803,138.2,166.07,165.98,18.64964886]
[1747525537109,26.0,166.06,165.98,18.64964886]
[1747525537682,138.2,166.07,165.98,18.64964886]
[1747525537883,138.2,166.07,165.99,1.20451179]
[1747525538114,138.2,166.07,166.0,6.3827]
[1747525538708,138.2,166.07,166.01,6.02373351]
[1747525539009,138.2,166.07,166.02,18.96]
[1747525540819,144.22163184,166.07,166.02,18.96]
[1747525541308,138.2,166.07,166.02,24.98326644]
[1747525541712,144.22161315,166.07,166.02,24.98326644]
[1747525544315,138.2,166.07,166.02,24.98326644]
[1747525544691,26.0,166.08,166.02,24.98326644]
[1747525546811,26.0,166.08,166.02,26.18768036]
[1747525548712,32.02125917,166.08,166.02,18.96]
[1747525549024,42.2338376,166.08,166.02,18.96]
[1747525550713,36.21257843,166.03,165.98,3.34004777]
[1747525550911,26.0,166.03,165.98,3.34004777]
[1747525551823,6.02337067,166.02,165.98,3.34004777]
[1747525552119,26.0,166.03,165.98,3.34004777]
[1747525552518,32.02313729,166.03,165.98,3.34004777]
[1747525555608,10.21257843,166.02,165.98,3.34004777]
[1747525555811,26.0,166.0,165.98,3.34004777]
[1747525557106,26.0,166.01,165.98,3.34004777]
[1747525558824,26.0,166.0,165.98,3.34004777]
[1747525559826,26.0,166.0,165.98,9.36486429]
[1747525560509,26.0,166.0,165.98,3.34004777]
[1747525560921,32.02339448,166.02,165.98,3.34004777]
[1747525561302,26.0,166.0,165.98,3.34004777]
[1747525563417,26.0,166.02,165.98,9.36479294]
[1747525563810,26.0,166.02,165.98,3.34004777]
[1747525565321,26.0,165.99,165.98,3.34004777]
[1747525567535,32.0244593,165.99,165.98,3.34004777]
[1747525568549,42.23703773,165.99,165.98,3.34004777]
[1747525570229,32.0244593,165.99,165.98,3.34004777]
[1747525571340,42.23703773,165.99,165.98,3.34004777]
[1747525576123,42.23703773,165.99,165.9,24.96737724]
[1747525576324,10.21257843,165.98,165.9,6.02737724]
[1747525576943,180.43703773,165.99,165.9,6.02737724]
[1747525577459,10.21257843,165.97,165.89,13.86826708]
[1747525577936,36.21257843,165.94,165.86,24.96905201]
[1747525578247,26.0,165.91,165.86,6.02905201]
[1747525579888,32.02741976,165.91,165.85,30.72953109]
[1747525580163,42.23999819,165.91,165.85,30.72953109]
[1747525581041,42.23999819,165.91,165.85,26.46613214]
[1747525582955,32.02741976,165.91,165.85,32.49563562]
[1747525583469,32.02741976,165.91,165.85,26.46613214]
[1747525583968,10.21257843,165.9,165.85,7.52613214]
[1747525584467,26.0,165.87,165.85,7.52613214]
[1747525584951,32.02895931,165.87,165.85,7.52613214]
[1747525586864,26.0,165.87,165.85,7.52613214]
[1747525587073,32.02890513,165.87,165.85,7.52613214]
[1747525589351,42.24148356,165.87,165.85,7.52613214]
[1747525589674,10.21257843,165.86,165.77,24.9723805]
[1747525589968,10.21257843,165.84,165.77,24.9723805]
[1747525590168,10.21257843,165.84,165.77,6.0323805]
[1747525591120,16.24285039,165.83,165.76,1.6411]
[1747525591582,16.24285039,165.83,165.76,7.67387982]
[1747525591761,26.0,165.81,165.76,7.67387982]
[1747525592677,26.0,165.82,165.76,7.67387982]
[1747525593174,26.0,165.82,165.76,22.75592615]
[1747525593373,26.0,165.84,165.76,22.75592615]
[1747525593573,6.02930516,165.86,165.76,22.75592615]
[1747525593940,26.0,165.85,165.76,22.75592615]
[1747525594584,36.21257843,165.85,165.76,7.67387982]
[1747525594746,10.21257843,165.84,165.76,7.67387982]
[1747525595163,6.03027196,165.83,165.76,7.67387982]
[1747525595881,26.0,165.79,165.73,6.03359663]
[1747525596969,26.0,165.81,165.73,6.03359663]
[1747525597174,138.2,165.82,165.73,6.03359663]
[1747525597175,138.2,165.82,165.75,6.2741]
[1747525597387,138.2,165.82,165.75,7.48044681]
[1747525597570,66.676372,165.85,165.76,18.64964886]
[1747525597766,66.676372,165.85,165.78,18.64964886]
[1747525597767,40.676372,165.85,165.78,18.64964886]
[1747525597965,40.676372,165.85,165.81,6.2741]
[1747525598568,46.70598524,165.85,165.81,6.2741]
[1747525598778,46.70598524,165.85,165.79,1.6028]
[1747525598972,40.676372,165.85,165.8,6.03136308]
[1747525610002,40.676372,165.85,165.8,21.1097708]
[1747525610496,40.676372,165.85,165.81,18.64964886]
[1747525611207,40.676372,165.85,165.82,21.10722469]
[1747525611399,40.676372,165.85,165.83,18.94]
[1747525613809,40.676372,165.85,165.84,12.27280834]
[1747525614994,138.2,165.88,165.84,27.3475792]
[1747525616120,26.0,165.92,165.84,27.3475792]
[1747525616809,138.2,165.95,165.85,1.6167]
[1747525617109,26.0,165.94,165.85,1.6167]
[1747525618096,32.02632013,165.94,165.86,6.02918123]
[1747525619017,26.0,165.94,165.86,6.02918123]
[1747525619193,144.22600804,165.95,165.86,21.10213432]
[1747525619514,138.2,165.95,165.86,21.10213432]
[1747525620006,144.22603848,165.95,165.86,21.10213432]
[1747525621319,138.2,165.95,165.86,21.10213432]
[1747525621784,144.22592355,165.95,165.86,21.10213432]
[1747525622188,138.2,165.95,165.87,18.64964886]
[1747525622816,18.94,165.98,165.9,18.64964886]
[1747525623117,26.0,165.98,165.91,18.94]
[1747525623333,139.7067,166.02,165.93,6.02663773]
[1747525623630,165.7067,166.02,165.93,6.02663773]
[1747525624422,139.7067,166.02,165.93,6.02663773]
[1747525624626,165.7067,166.02,165.93,21.09323207]
[1747525624914,145.73014194,166.02,165.93,21.09323207]
[1747525625127,171.73014194,166.02,165.93,6.02663773]
[1747525625296,10.21257843,166.01,165.92,6.0268867]
[1747525625687,10.21257843,166.0,165.92,6.0268867]
[1747525626293,10.21257843,165.97,165.91,23.19994192]
[1747525627093,10.21257843,165.98,165.91,23.19994192]
[1747525627617,6.02518527,165.97,165.91,23.19994192]
[1747525629027,16.2377637,165.97,165.91,18.94]
[1747525629529,6.02518527,165.97,165.91,18.94]
[1747525630020,6.02518527,165.97,165.88,6.0284543]
[1747525630195,6.02518527,165.97,165.89,18.94]
[1747525630511,31.30072688,165.97,165.89,18.94]
[1747525633831,36.21257843,165.96,165.87,1.6019]
[1747525634002,26.0,165.93,165.86,37.86]
[1747525634206,10.21257843,165.93,165.86,37.86]
[1747525635121,10.21257843,165.92,165.83,1.6019]
[1747525635307,26.0,165.92,165.84,18.94]
[1747525635506,36.21257843,165.92,165.84,18.94]
[1747525636139,6.02736423,165.91,165.84,24.96966458]
[1747525637307,26.0,165.92,165.84,24.96966458]
[1747525638329,26.0,165.94,165.85,18.64964886]
[1747525639028,26.0,165.94,165.85,19.85511047]
[1747525639330,144.22604354,165.95,165.86,21.10213432]
[1747525644032,154.43862197,165.95,165.86,6.02918123]
[1747525644332,154.43862197,165.95,165.87,18.94]
[1747525644632,144.22604354,165.95,165.87,18.94]
[1747525646440,144.22604354,165.95,165.88,6.0284543]
[1747525648056,138.2,165.95,165.88,6.0284543]
[1747525648626,32.02526684,165.97,165.88,21.09959006]
[1747525653842,42.23784527,165.97,165.88,21.09959006]
[1747525654553,10.21257843,165.96,165.88,6.0284543]
[1747525654858,36.21257843,165.93,165.86,4.25994192]
[1747525655964,10.21257843,165.92,165.85,43.86925752]
[1747525656143,6.02736423,165.91,165.85,43.86925752]
[1747525656344,6.02736423,165.91,165.85,24.94925752]
[1747525657837,6.02709239,165.92,165.85,24.94925752]
[1747525658335,26.0,165.93,165.85,24.94925752]
[1747525659158,138.2,165.95,165.86,18.64964886]
[1747525659456,26.0,165.96,165.86,18.64964886]
[1747525659759,26.0,165.96,165.87,21.10086211]
[1747525659938,26.0,165.95,165.87,21.10086211]
[1747525660143,17.74121186,165.98,165.88,18.64964886]
[1747525660657,36.21257843,165.97,165.88,18.64964886]
[1747525662163,6.02554832,165.96,165.89,6.0280909]
[1747525666268,10.21257843,165.95,165.88,6.0284543]
[1747525667263,36.21257843,165.93,165.87,4.25994192]
[1747525667451,10.21257843,165.92,165.87,4.25994192]
[1747525667770,10.21257843,165.91,165.87,4.25994192]
[1747525667954,10.21257843,165.91,165.86,6.02916872]
[1747525668960,16.23966998,165.92,165.86,6.02916872]
[1747525669844,42.23935887,165.93,165.86,6.02916872]
[1747525670264,26.0,165.93,165.86,6.02916872]
[1747525670953,26.0,165.93,165.86,24.94916872]
[1747525672570,32.02674253,165.93,165.86,24.94916872]
[1747525672775,42.23932096,165.93,165.86,24.94916872]
[1747525674073,42.23932096,165.93,165.86,18.92]
[1747525674364,11.83457843,165.92,165.85,6.02945002]
[1747525674538,10.21257843,165.9,165.84,4.25994192]
[1747525674742,10.21257843,165.88,165.84,4.25994192]
[1747525675546,156.28,165.91,165.84,4.25994192]
[1747525675547,36.21257843,165.87,165.84,4.25994192]
[1747525675957,10.21257843,165.86,165.84,4.25994192]
[1747525676684,6.02954476,165.85,165.84,4.25994192]
[1747525677042,6.02954476,165.85,165.79,6.03162099]
[1747525677969,6.02954476,165.85,165.77,6.0324546]
[1747525678170,36.21257843,165.82,165.76,29.21262999]
[1747525678351,36.21257843,165.82,165.76,4.25994192]
[1747525679783,16.24357776,165.81,165.76,4.25994192]
[1747525679957,36.21257843,165.78,165.76,4.25994192]
[1747525680156,10.21257843,165.77,165.76,4.25994192]
[1747525680653,36.94662729,165.77,165.76,4.25994192]
[1747525680974,26.0,165.74,165.67,4.25994192]
[1747525681210,26.0,165.72,165.67,4.25994192]
[1747525681878,32.03446174,165.72,165.67,4.25994192]
[1747525682886,26.0,165.72,165.67,10.29597589]
[1747525684077,26.0,165.72,165.66,6.03646021]
[1747525685702,148.41257843,165.76,165.66,21.12761075]
[1747525685883,26.0,165.75,165.66,21.12761075]
[1747525686578,1.5441,165.77,165.67,19.8565253]
[1747525686883,26.0,165.76,165.67,19.8565253]
[1747525688395,26.0,165.76,165.68,21.12506035]
[1747525689494,165.2828,165.81,165.69,27.8014823]
[1747525689702,138.2,165.81,165.72,26.0]
[1747525689878,73.1076818,165.82,165.73,37.58964886]
[1747525690497,73.1076818,165.82,165.74,21.1174128]
[1747525693797,73.1076818,165.82,165.75,19.85590956]
[1747525695806,73.1076818,165.82,165.76,21.11486486]
[1747525696312,73.1076818,165.82,165.76,6.03281853]
[1747525696521,10.21257843,165.81,165.75,6.03310252]
[1747525696708,79.1384679,165.82,165.7,18.64964886]
[1747525696709,36.21257843,165.8,165.7,33.73652974]
[1747525696902,36.21257843,165.8,165.71,18.94]
[1747525697297,26.0,165.8,165.72,18.64964886]
[1747525697494,238.8959818,165.82,165.72,18.64964886]
[1747525697704,237.3076818,165.82,165.72,19.85611355]
[1747525697885,237.3076818,165.82,165.73,21.11868701]
[1747525699926,211.3076818,165.82,165.73,21.11868701]
[1747525700129,211.3076818,165.82,165.74,19.85592854]
[1747525700346,1.5883,165.87,165.76,20.16094886]
[1747525700643,138.2,165.88,165.78,18.64964886]
[1747525700800,138.2,165.88,165.79,1.20592748]
[1747525702011,138.2,165.88,165.8,6.03136308]
[1747525703933,144.22849327,165.88,165.8,6.03136308]
[1747525704435,144.22849327,165.88,165.79,21.11045388]
[1747525705635,10.21257843,165.87,165.79,24.97172688]
[1747525706714,6.02918123,165.86,165.79,24.97172688]
[1747525708234,6.02881774,165.87,165.79,24.97172688]
[1747525708721,144.22851801,165.88,165.79,24.97172688]
[1747525708913,138.2,165.88,165.79,40.05104408]
[1747525711539,144.2285372,165.88,165.79,40.05104408]